bitfinex/quotes_BTCUSD_20220109
["timestamp","ask_amount","ask_price","bid_price","bid_amount"]
[1641770464672,0.83439021,41975.0,41972.0,0.03941458]
[1641770464872,0.385765,41973.0,41972.0,0.03941458]
[1641770465873,1.01195604,41973.0,41972.0,0.03941458]
[1641770466177,1.08095604,41973.0,41972.0,0.03941458]
[1641770467415,1.06195604,41973.0,41972.0,0.03941458]
[1641770468216,0.05956,41969.0,41964.0,0.36729479]
[1641770468824,0.05956,41969.0,41964.0,0.36748344]
[1641770469518,0.04956,41969.0,41964.0,0.36748344]
[1641770469720,0.04456,41969.0,41964.0,0.36748344]
[1641770469919,0.04456,41969.0,41964.0,0.36747302]
[1641770470184,0.038,41969.0,41965.0,0.119105]
[1641770470383,0.038,41969.0,41968.0,0.00120059]
[1641770471390,0.00020668,41972.0,41968.0,0.00120059]
[1641770471583,0.00020668,41972.0,41970.0,0.059547]
[1641770472184,0.00520668,41972.0,41970.0,0.080547]
[1641770472589,0.005,41972.0,41970.0,0.12818476]
[1641770472784,0.005,41972.0,41970.0,0.17818476]
[1641770473386,0.00020668,41973.0,41970.0,0.15718476]
[1641770473586,0.331779,41980.0,41976.0,0.27720386]
[1641770473787,0.059548,41977.0,41976.0,0.27720386]
[1641770474033,0.25061849,41982.0,41976.0,0.27720386]
[1641770474228,0.00082654,41983.0,41976.0,0.27720386]
[1641770474729,0.059541,41982.0,41977.0,0.059542]
[1641770475130,0.059541,41982.0,41976.0,0.32720386]
[1641770475330,0.27009214,41979.0,41975.0,0.119078]
[1641770475530,0.27009214,41979.0,41975.0,0.169078]
[1641770475731,0.059655,41982.0,41975.0,0.169078]
[1641770475932,0.00011,41982.0,41977.0,0.059537]
[1641770476232,0.00011,41982.0,41975.0,0.008]
[1641770476434,0.00011,41982.0,41975.0,0.058]
[1641770476637,0.00011,41982.0,41975.0,0.008]
[1641770476830,0.2654262,41980.0,41975.0,0.008]
[1641770477231,0.2654262,41980.0,41975.0,0.067546]
[1641770477875,0.00021053,41980.0,41975.0,0.067546]
[1641770478075,0.00021053,41980.0,41975.0,0.059546]
[1641770478274,0.00021053,41980.0,41975.0,0.068546]
[1641770478874,0.00021032,41980.0,41975.0,0.068546]
[1641770479075,0.31674553,41977.0,41975.0,0.068546]
[1641770479280,0.00021032,41980.0,41975.0,0.068546]
[1641770479777,0.30413288,41978.0,41975.0,0.068546]
[1641770479978,0.30413288,41978.0,41975.0,0.009]
[1641770480176,0.30413288,41978.0,41975.0,0.026]
[1641770481176,0.3098177,41977.0,41975.0,0.026]
[1641770481427,0.3098177,41977.0,41970.0,0.60576194]
[1641770481428,0.3098177,41977.0,41976.0,0.059542]
[1641770481622,0.3098177,41977.0,41973.0,0.21672018]
[1641770482223,0.3100243,41977.0,41973.0,0.26872018]
[1641770482725,0.3100243,41977.0,41973.0,0.221084]
[1641770483323,0.31002437,41977.0,41973.0,0.221084]
[1641770483522,0.31002437,41977.0,41973.0,0.05]
[1641770483923,0.30514831,41976.0,41970.0,0.31293304]
[1641770484124,0.31002437,41977.0,41972.0,0.05955]
[1641770484327,0.31002437,41977.0,41973.0,0.043]
[1641770484328,0.31802437,41977.0,41973.0,0.043]
[1641770484525,0.00820667,41977.0,41973.0,0.043]
[1641770484826,0.00820667,41977.0,41973.0,0.093]
[1641770485212,0.00820667,41977.0,41975.0,0.46191575]
[1641770485408,0.00020667,41977.0,41975.0,0.46191575]
[1641770485607,0.00020667,41977.0,41975.0,0.05]
[1641770486007,0.00020667,41977.0,41975.0,0.059542]
[1641770486208,0.00620667,41977.0,41975.0,0.077542]
[1641770486812,0.006,41977.0,41975.0,0.077397]
[1641770487609,0.25101626,41982.0,41975.0,0.059397]
[1641770487809,0.00020687,41978.0,41975.0,0.059397]
[1641770488209,0.00020687,41978.0,41975.0,0.089397]
[1641770488709,0.00020687,41978.0,41977.0,0.04763138]
[1641770488917,0.003,41982.0,41977.0,0.04763138]
[1641770489119,0.003,41982.0,41979.0,0.05954]
[1641770489524,0.26096374,41984.0,41979.0,0.05954]
[1641770489718,0.57160551,41984.0,41979.0,0.05954]
[1641770490318,0.58160551,41984.0,41979.0,0.003]
[1641770490519,0.80417294,41984.0,41979.0,0.003]
[1641770491120,0.5432092,41984.0,41979.0,0.003]
[1641770491520,0.31064177,41984.0,41974.0,0.12030055]
[1641770491719,0.059543,41983.0,41974.0,0.1619794]
[1641770491921,0.054543,41983.0,41974.0,0.1619794]
[1641770492125,0.31064177,41984.0,41977.0,0.059543]
[1641770492126,0.00021436,41981.0,41977.0,0.059543]
[1641770492321,0.00021436,41981.0,41978.0,0.2388244]
[1641770493168,0.00021436,41982.0,41978.0,0.2388244]
[1641770493368,0.00021436,41982.0,41980.0,0.059538]
[1641770494268,0.01,41982.0,41980.0,0.075538]
[1641770495568,0.00021068,41983.0,41980.0,0.059538]
[1641770496624,0.61638696,41984.0,41980.0,0.059538]
[1641770498828,0.27683447,41984.0,41980.0,0.059538]
[1641770499031,0.00020664,41984.0,41980.0,0.10121192]
[1641770499733,0.27894881,41983.0,41980.0,0.10121192]
[1641770499930,0.27894881,41983.0,41980.0,0.059538]
[1641770500176,0.21730941,41982.0,41978.0,0.11907]
[1641770500476,0.2584461,41982.0,41973.0,0.00018295]
[1641770500879,0.2584461,41982.0,41973.0,0.00036583]
[1641770500880,0.0477,41981.0,41973.0,0.00036583]
[1641770501177,0.34453235,41976.0,41973.0,0.00018288]
[1641770501977,0.34453235,41976.0,41972.0,0.33021578]
[1641770502177,0.2584461,41978.0,41972.0,0.33021578]
[1641770502382,0.007,41976.0,41973.0,0.012]
[1641770503579,0.21882668,41978.0,41972.0,0.33021578]
[1641770504024,0.32498809,41977.0,41972.0,0.33021578]
[1641770504223,0.32498809,41977.0,41973.0,0.00018288]
[1641770506431,0.34098809,41977.0,41973.0,0.00018288]
[1641770506629,0.016,41977.0,41974.0,0.26386061]
[1641770507688,0.059547,41979.0,41973.0,0.00018288]
[1641770507885,0.31703568,41978.0,41973.0,0.00018288]
[1641770508583,0.24457049,41974.0,41973.0,0.00018288]
[1641770508783,0.31703568,41978.0,41973.0,0.00018288]
[1641770509587,0.31703568,41978.0,41970.0,0.20016]
[1641770509788,0.29878457,41975.0,41973.0,0.00018288]
[1641770510193,0.31703568,41978.0,41973.0,0.00018288]
[1641770510389,0.014,41975.0,41973.0,0.06072988]
[1641770510888,0.014,41975.0,41973.0,0.060547]
[1641770511525,0.28827472,41979.0,41973.0,0.059547]
[1641770511926,0.0477,41983.0,41978.0,0.28545208]
[1641770512126,0.23508851,41985.0,41978.0,0.34499308]
[1641770512326,0.016,41979.0,41978.0,0.28545208]
[1641770512528,0.016,41979.0,41974.0,0.11908]
[1641770512930,0.2585709,41975.0,41974.0,0.11908]
[1641770513229,0.2585709,41975.0,41973.0,0.07396675]
[1641770514331,0.2605709,41975.0,41973.0,0.08696675]
[1641770515575,0.2585709,41975.0,41973.0,0.07396675]
[1641770516274,0.2695709,41975.0,41973.0,0.07896675]
[1641770517275,0.011,41975.0,41973.0,0.07896675]
[1641770517475,0.011,41975.0,41973.0,0.13351375]
[1641770517675,0.0597597,41978.0,41973.0,0.13351375]
[1641770518077,0.0002107,41978.0,41975.0,0.43499514]
[1641770518279,0.0002107,41978.0,41977.0,0.00126769]
[1641770518478,0.0002107,41978.0,41977.0,0.77995843]
[1641770518676,0.0002107,41978.0,41977.0,0.92995843]
[1641770518917,0.00020666,41979.0,41977.0,0.92995843]
[1641770519117,0.00020666,41979.0,41978.0,0.52431261]
[1641770519920,0.00020665,41981.0,41978.0,0.64337961]
[1641770520120,0.00020665,41981.0,41979.0,0.33767798]
[1641770520321,0.00020665,41981.0,41979.0,0.059534]
[1641770520526,0.00020665,41981.0,41978.0,0.129067]
[1641770520731,0.00020665,41981.0,41978.0,0.01]
[1641770521123,0.00020665,41982.0,41978.0,0.01]
[1641770521537,0.5552735,41979.0,41972.0,0.468694]
[1641770521922,0.5552735,41979.0,41974.0,0.059547]
[1641770523078,0.55548026,41979.0,41974.0,0.059547]
[1641770524173,0.61502826,41979.0,41974.0,0.059547]
[1641770525372,0.61502837,41979.0,41974.0,0.059547]
[1641770527422,0.61502837,41979.0,41972.0,0.07396552]
[1641770528623,0.00020687,41978.0,41973.0,0.059548]
[1641770529324,0.00020687,41978.0,41971.0,0.00144999]
[1641770529527,0.00020687,41978.0,41971.0,0.0001825]
[1641770529528,0.05955,41977.0,41971.0,0.0001825]
[1641770529827,0.05955,41977.0,41971.0,0.00018248]
[1641770529828,0.552585,41976.0,41971.0,0.00018248]
[1641770530025,0.652585,41976.0,41971.0,0.00018248]
[1641770530280,0.3084461,41975.0,41971.0,0.00018248]
[1641770530485,0.433465,41974.0,41971.0,0.00018248]
[1641770530682,0.26001854,41965.0,41964.0,0.30644069]
[1641770532282,0.26601854,41965.0,41964.0,0.30644069]
[1641770534327,0.012,41965.0,41964.0,0.30644069]
[1641770534824,0.012,41965.0,41964.0,0.45644069]
[1641770535223,0.012,41965.0,41964.0,0.72354628]
[1641770535425,0.012,41965.0,41964.0,0.30644069]
[1641770535622,8.444e-05,41970.0,41964.0,0.35644069]
[1641770535822,8.444e-05,41970.0,41969.0,0.28165503]
[1641770536221,0.26326139,41973.0,41969.0,0.28165503]
[1641770537223,0.00029086,41975.0,41969.0,0.28165503]
[1641770537423,0.00029086,41975.0,41970.0,0.059552]
[1641770537424,0.00029087,41975.0,41970.0,0.059552]
[1641770537681,0.00029087,41975.0,41970.0,0.47570409]
[1641770538286,0.00020643,41975.0,41970.0,0.47570409]
[1641770538482,0.00020643,41975.0,41971.0,0.24557058]
[1641770538483,0.00520643,41975.0,41971.0,0.24557058]
[1641770538689,0.00520643,41975.0,41973.0,0.059544]
[1641770538690,0.00520264,41975.0,41973.0,0.059544]
[1641770539584,0.00020264,41975.0,41973.0,0.059544]
[1641770539784,0.00020669,41976.0,41973.0,0.059544]
[1641770540386,0.01720669,41976.0,41973.0,0.064544]
[1641770540784,0.017,41976.0,41973.0,0.064544]
[1641770541631,0.00020669,41977.0,41973.0,0.059544]
[1641770541832,0.00020669,41977.0,41976.0,0.29363529]
[1641770542430,0.03420669,41977.0,41976.0,0.29463529]
[1641770542631,0.03420669,41977.0,41976.0,0.35417929]
[1641770543031,0.034,41977.0,41976.0,0.35417929]
[1641770544432,0.075,41977.0,41976.0,0.35817929]
[1641770545581,0.041,41977.0,41976.0,0.35317929]
[1641770545781,4.00020688,41979.0,41976.0,0.35317929]
[1641770546385,4.01320688,41979.0,41976.0,0.36217929]
[1641770546784,4.01320688,41979.0,41976.0,0.40385638]
[1641770546985,0.76162232,41978.0,41976.0,0.30263529]
[1641770547483,0.76162232,41978.0,41976.0,0.30143529]
[1641770547684,0.76162232,41978.0,41976.0,0.29243529]
[1641770548083,0.76042232,41978.0,41976.0,0.29243529]
[1641770548284,0.81742232,41978.0,41976.0,0.29643529]
[1641770548485,0.81742232,41978.0,41976.0,0.29627161]
[1641770548928,0.81742232,41978.0,41976.0,0.29507161]
[1641770549326,0.81622232,41978.0,41976.0,0.29507161]
[1641770549828,4.00020687,41979.0,41976.0,0.29107161]
[1641770550228,4.00020687,41979.0,41976.0,0.28987161]
[1641770550427,4.03420687,41979.0,41976.0,0.29187161]
[1641770550629,4.034,41979.0,41976.0,0.29187161]
[1641770551128,4.0328,41979.0,41976.0,0.35141361]
[1641770551532,3.9988,41979.0,41976.0,0.34941361]
[1641770552430,4.0108,41979.0,41976.0,0.35241361]
[1641770553475,4.330636,41979.0,41976.0,0.35241361]
[1641770553674,4.318636,41979.0,41976.0,0.34941361]
[1641770554474,4.361636,41979.0,41976.0,0.35441361]
[1641770556276,4.318636,41979.0,41976.0,0.34941361]
[1641770556526,4.351636,41979.0,41976.0,0.35321361]
[1641770557627,4.318636,41979.0,41976.0,0.34821361]
[1641770557828,4.313636,41979.0,41976.0,0.34821361]
[1641770558028,3.9938,41979.0,41976.0,0.34821361]
[1641770558427,4.0318,41979.0,41976.0,0.35321361]
[1641770559527,4.0318,41979.0,41976.0,0.34821361]
[1641770559726,3.9938,41979.0,41976.0,0.34821361]
[1641770560026,3.9926,41979.0,41976.0,0.34821361]
[1641770560481,3.9926,41979.0,41976.0,0.35621361]
[1641770560983,3.9926,41979.0,41978.0,0.35]
[1641770561382,3.9926,41979.0,41976.0,0.62992312]
[1641770561581,3.9926,41979.0,41977.0,0.0416748]
[1641770561782,3.9926,41979.0,41978.0,0.5265954]
[1641770561986,3.9926,41979.0,41978.0,0.2765954]
[1641770562382,3.9926,41979.0,41978.0,0.2885954]
[1641770562783,3.9926,41979.0,41978.0,0.012]
[1641770563582,3.9926,41979.0,41977.0,0.0416748]
[1641770564226,3.9926,41979.0,41978.0,0.28052509]
[1641770564427,3.9926,41979.0,41978.0,0.33052509]
[1641770564632,3.9926,41979.0,41978.0,0.28052509]
[1641770565129,3.9926,41979.0,41977.0,0.013]
[1641770565631,3.9926,41979.0,41976.0,0.34944634]
[1641770566032,3.9926,41979.0,41976.0,0.44944634]
[1641770566229,3.9926,41979.0,41976.0,0.34944634]
[1641770566430,3.9926,41979.0,41977.0,0.04167593]
[1641770566730,3.9926,41979.0,41977.0,0.11563423]
[1641770567135,3.9926,41979.0,41977.0,0.0739583]
[1641770567331,0.30407576,41978.0,41977.0,0.0739583]
[1641770568180,0.30407576,41978.0,41976.0,0.059542]
[1641770568384,0.30407576,41978.0,41971.0,0.41513067]
[1641770568385,0.533465,41977.0,41971.0,0.41513067]
[1641770568580,0.633465,41977.0,41971.0,0.41513067]
[1641770568780,0.23880217,41974.0,41971.0,0.41513067]
[1641770568979,0.433465,41973.0,41971.0,0.41513067]
[1641770570380,0.447465,41973.0,41971.0,0.41513067]
[1641770571183,0.447465,41973.0,41971.0,0.41357067]
[1641770571831,0.433465,41973.0,41971.0,0.41357067]
[1641770572435,0.447465,41973.0,41971.0,0.41357067]
[1641770573332,0.0617,41973.0,41971.0,0.41357067]
[1641770573735,0.0477,41973.0,41971.0,0.41357067]
[1641770574534,0.0607,41973.0,41971.0,0.41357067]
[1641770575579,0.0477,41973.0,41971.0,0.41357067]
[1641770576481,0.0557,41973.0,41971.0,0.45157067]
[1641770577682,0.0477,41973.0,41971.0,0.41357067]
[1641770578482,0.0567,41973.0,41971.0,0.43057067]
[1641770579529,0.40054089,41972.0,41971.0,0.43057067]
[1641770579729,0.40054089,41972.0,41971.0,0.41357067]
[1641770580133,0.44824089,41972.0,41971.0,0.41357067]
[1641770580529,0.46024089,41972.0,41971.0,0.41357067]
[1641770581230,0.0597,41972.0,41971.0,0.41357067]
[1641770581630,0.0477,41972.0,41971.0,0.41357067]
[1641770582531,0.0587,41972.0,41971.0,0.41357067]
[1641770583775,0.0477,41972.0,41971.0,0.41357067]
[1641770584179,0.046,41972.0,41971.0,0.41357067]
[1641770584478,0.057,41972.0,41971.0,0.41357067]
[1641770585779,0.046,41972.0,41971.0,0.41357067]
[1641770586428,0.058,41972.0,41971.0,0.41357067]
[1641770587137,0.058,41972.0,41971.0,0.16581228]
[1641770587138,0.908,41972.0,41971.0,0.16581228]
[1641770587331,1.293765,41972.0,41971.0,0.16581228]
[1641770587530,1.493765,41972.0,41971.0,0.16581228]
[1641770587733,0.94742455,41970.0,41969.0,0.00018209]
[1641770587934,0.433465,41970.0,41969.0,0.00018209]
[1641770588134,0.79848196,41970.0,41969.0,0.00018209]
[1641770588531,0.80948196,41970.0,41969.0,0.00018209]
[1641770588735,1.10948196,41970.0,41969.0,0.00018209]
[1641770588933,0.059577,41967.0,41964.0,0.30512278]
[1641770589232,0.433465,41966.0,41964.0,0.30512278]
[1641770589430,0.22454382,41965.0,41964.0,0.30512278]
[1641770589632,0.27224382,41965.0,41964.0,0.30512278]
[1641770589933,0.57426858,41965.0,41964.0,0.30512278]
[1641770590188,0.34972476,41965.0,41964.0,0.30512278]
[1641770590581,0.35872476,41965.0,41964.0,0.30512278]
[1641770591784,0.34972476,41965.0,41964.0,0.30512278]
[1641770592582,0.35772476,41965.0,41964.0,0.30512278]
[1641770593484,0.40772476,41965.0,41964.0,0.30512278]
[1641770593784,0.62398234,41965.0,41964.0,0.30512278]
[1641770594424,0.63398234,41965.0,41964.0,0.30512278]
[1641770594826,0.40972476,41965.0,41964.0,0.30512278]
[1641770595631,0.39972476,41965.0,41964.0,0.30512278]
[1641770595828,0.49972476,41965.0,41964.0,0.30512278]
[1641770596032,1.33942377,41965.0,41964.0,0.30512278]
[1641770596229,1.23942377,41965.0,41964.0,0.30512278]
[1641770596429,1.10642377,41965.0,41964.0,0.30512278]
[1641770596629,0.98294976,41965.0,41964.0,0.30512278]
[1641770596830,0.49718476,41965.0,41964.0,0.30512278]
[1641770597429,0.12811,41965.0,41964.0,0.30512278]
[1641770597674,0.11111,41965.0,41964.0,0.30512278]
[1641770598478,0.12211,41965.0,41964.0,0.30512278]
[1641770600579,0.13411,41965.0,41964.0,0.30512278]
[1641770600783,0.12311,41965.0,41964.0,0.30512278]
[1641770600980,0.73603527,41965.0,41964.0,0.30512278]
[1641770601180,0.88603527,41965.0,41964.0,0.30512278]
[1641770601635,0.87403527,41965.0,41964.0,0.30512278]
[1641770602341,0.51975492,41964.0,41962.0,0.00036346]
[1641770602540,1.91400616,41963.0,41962.0,0.00018173]
[1641770602738,1.91400616,41963.0,41947.0,1.4889]
[1641770602739,0.2,41961.0,41947.0,0.9271]
[1641770602939,0.1,41956.0,41943.0,0.00072724]
[1641770603141,0.30392596,41947.0,41943.0,0.00072724]
[1641770603344,0.76352388,41947.0,41943.0,0.00072724]
[1641770603540,0.76352388,41947.0,41937.0,0.9342]
[1641770603541,0.40043427,41945.0,41937.0,0.9342]
[1641770603942,0.07193874,41941.0,41936.0,0.00043]
[1641770604140,0.0477,41940.0,41936.0,0.00043]
[1641770604340,2.29288487,41938.0,41936.0,0.00043]
[1641770604541,1.083465,41937.0,41936.0,0.00053054]
[1641770604741,1.283465,41937.0,41936.0,0.00043054]
[1641770604941,1.383465,41937.0,41936.0,0.00033054]
[1641770605182,1.433465,41937.0,41936.0,0.00033054]
[1641770605683,1.433465,41937.0,41936.0,0.00023]
[1641770605887,1.446875,41937.0,41936.0,0.00023]
[1641770606084,1.246875,41937.0,41936.0,0.00023]
[1641770606283,0.596875,41937.0,41936.0,0.00023]
[1641770606484,0.606875,41937.0,41936.0,0.00023]
[1641770606883,0.86216037,41937.0,41936.0,0.00023]
[1641770607287,3.03933928,41925.0,41918.0,0.00160682]
[1641770607683,3.42510428,41925.0,41918.0,0.00160682]
[1641770608486,3.43210428,41925.0,41920.0,0.07005651]
[1641770609131,3.43210428,41925.0,41922.0,0.00612705]
[1641770609432,3.04633928,41925.0,41922.0,0.06574705]
[1641770609832,2.21633928,41925.0,41924.0,0.85043]
[1641770610029,2.21633928,41925.0,41924.0,0.85171512]
[1641770610231,2.21633928,41925.0,41924.0,0.25611704]
[1641770610431,2.21633928,41925.0,41922.0,0.06569028]
[1641770610634,2.21833928,41925.0,41924.0,0.062]
[1641770610832,2.21833928,41925.0,41924.0,0.662]
[1641770611234,2.21833928,41925.0,41910.0,0.00053]
[1641770611432,0.002,41925.0,41921.0,0.201]
[1641770611638,0.29162185,41925.0,41921.0,0.201]
[1641770611833,0.002,41925.0,41921.0,0.22056164]
[1641770612032,0.002,41925.0,41921.0,0.119231]
[1641770612232,0.002,41925.0,41921.0,0.114231]
[1641770612434,0.1,41930.0,41921.0,0.114231]
[1641770612687,0.1,41930.0,41921.0,0.046]
[1641770612883,0.58248784,41925.0,41921.0,0.046]
[1641770613085,0.1,41922.0,41921.0,0.046]
[1641770613690,0.58248784,41925.0,41916.0,0.00121632]
[1641770613886,0.58248784,41925.0,41916.0,0.04294798]
[1641770614085,0.1,41919.0,41916.0,0.04294798]
[1641770614287,0.1,41919.0,41917.0,0.119242]
[1641770614686,0.1002145,41920.0,41917.0,0.119242]
[1641770615286,0.0002145,41920.0,41917.0,0.119242]
[1641770615486,0.1002145,41920.0,41917.0,0.119242]
[1641770615687,0.0002145,41921.0,41917.0,0.119242]
[1641770616535,0.1,41918.0,41917.0,0.178242]
[1641770616731,0.26835676,41918.0,41907.0,0.34012]
[1641770616931,0.00121511,41918.0,41913.0,0.00018188]
[1641770617131,0.09629306,41914.0,41913.0,0.00018188]
[1641770617333,0.41892634,41914.0,41913.0,0.00018188]
[1641770617931,0.41892634,41914.0,41907.0,0.05532]
[1641770618131,0.68430817,41914.0,41907.0,0.04532]
[1641770618331,0.09629306,41913.0,41910.0,0.059634]
[1641770618631,0.09629306,41913.0,41907.0,0.04532]
[1641770618836,0.59601511,41914.0,41907.0,0.04532]
[1641770619030,0.59723785,41914.0,41909.0,0.0001815]
[1641770619432,0.59723785,41914.0,41909.0,0.0598195]
[1641770619635,0.59601511,41914.0,41909.0,0.0598195]
[1641770619832,0.26538183,41914.0,41909.0,0.0598195]
[1641770620031,0.26538183,41914.0,41909.0,0.0599911]
[1641770620285,0.26538183,41914.0,41909.0,0.0584626]
[1641770620286,0.36167489,41914.0,41909.0,0.0584626]
[1641770620486,0.28138183,41914.0,41909.0,0.0584626]
[1641770620889,0.28449005,41913.0,41909.0,0.0584626]
[1641770621089,0.09629306,41910.0,41909.0,0.0584626]
[1641770621291,0.09629306,41911.0,41909.0,0.0584626]
[1641770621988,0.09629306,41911.0,41909.0,0.0534626]
[1641770622490,0.30625537,41911.0,41909.0,0.053291]
[1641770622889,0.09629306,41910.0,41909.0,0.053291]
[1641770623089,0.22421796,41917.0,41909.0,0.053291]
[1641770623090,0.1,41922.0,41909.0,0.053291]
[1641770623491,0.06090987,41920.0,41909.0,0.053291]
[1641770624133,0.3385484,41915.0,41909.0,0.053291]
[1641770624532,0.3385484,41915.0,41913.0,0.059633]
[1641770624931,0.3385484,41915.0,41913.0,0.058433]
[1641770625130,0.32209168,41918.0,41913.0,0.058433]
[1641770626232,0.31680551,41915.0,41913.0,0.058433]
[1641770626431,0.31680551,41915.0,41912.0,9.879e-05]
[1641770626833,0.31680551,41915.0,41913.0,9.879e-05]
[1641770627784,0.0002145,41918.0,41913.0,0.059633]
[1641770628681,0.0182145,41918.0,41913.0,0.059633]
[1641770628880,0.27910627,41917.0,41913.0,0.05980503]
[1641770629781,1.11658166,41916.0,41910.0,0.01351927]
[1641770629983,0.49396469,41909.0,41907.0,0.00021]
[1641770630183,0.54166469,41909.0,41907.0,0.00021]
[1641770630382,0.385765,41908.0,41907.0,0.00021]
[1641770630582,0.385765,41908.0,41894.0,0.00109698]
[1641770630583,0.27734806,41897.0,41894.0,0.00109698]
[1641770630783,0.73654306,41897.0,41894.0,0.00109698]
[1641770632241,1.00312472,41897.0,41896.0,0.00023]
[1641770632442,1.00312472,41897.0,41877.0,0.09847769]
[1641770632443,0.00128337,41893.0,41877.0,0.09847769]
[1641770632646,0.00128337,41893.0,41877.0,0.0290664]
[1641770632841,0.02291715,41881.0,41877.0,0.0290664]
[1641770633042,0.00120817,41878.0,41877.0,0.0290664]
[1641770633341,1.30493502,41878.0,41870.0,0.01859793]
[1641770633545,1.30493502,41878.0,41853.0,0.03309273]
[1641770633546,2.58519199,41871.0,41853.0,0.03309273]
[1641770633742,0.26658166,41870.0,41854.0,0.00126827]
[1641770633946,0.14615663,41870.0,41854.0,0.00126827]
[1641770634242,0.26658166,41871.0,41858.0,0.119404]
[1641770634439,0.55502298,41871.0,41859.0,0.00122959]
[1641770634649,0.55502298,41871.0,41854.0,0.00126827]
[1641770634650,0.85,41869.0,41854.0,0.05447441]
[1641770634840,0.01245,41862.0,41854.0,0.00072143]
[1641770635041,0.08664,41862.0,41854.0,0.00072143]
[1641770635295,0.00989,41855.0,41854.0,0.00072143]
[1641770635494,2.35503295,41859.0,41854.0,0.00072143]
[1641770635495,2.35503295,41859.0,41854.0,0.25619062]
[1641770635693,2.33503295,41859.0,41854.0,0.25546919]
[1641770635894,0.00127577,41865.0,41854.0,0.25546919]
[1641770636095,0.10740917,41872.0,41855.0,0.26658166]
[1641770636297,0.2,41871.0,41862.0,0.00011]
[1641770636495,0.385765,41870.0,41862.0,0.00011]
[1641770636696,0.44753176,41861.0,41852.0,0.00176859]
[1641770636897,0.44753176,41861.0,41852.0,0.00053]
[1641770636898,0.28591737,41860.0,41852.0,0.00053]
[1641770637096,0.53591737,41860.0,41859.0,0.00011]
[1641770637302,0.92168237,41860.0,41859.0,0.00011]
[1641770637499,0.19999,41858.0,41852.0,0.00013]
[1641770637696,1.04999,41853.0,41852.0,0.00013]
[1641770637896,0.19499,41850.0,41848.0,0.0010216]
[1641770638097,0.678525,41850.0,41848.0,0.0010216]
[1641770638296,0.493425,41850.0,41848.0,0.0010216]
[1641770638495,1.00989666,41850.0,41848.0,0.0010216]
[1641770638695,1.085765,41849.0,41847.0,8.16e-05]
[1641770638947,0.00123624,41848.0,41844.0,0.4399352]
[1641770639146,0.00989,41850.0,41844.0,0.3901152]
[1641770639350,0.3,41849.0,41831.0,0.71879]
[1641770639548,0.00989,41850.0,41837.0,0.25348495]
[1641770639549,0.00127565,41842.0,41837.0,0.25348495]
[1641770639748,0.26617166,41847.0,41831.0,0.51851]
[1641770639952,0.059749,41843.0,41838.0,0.3374221]
[1641770640150,0.26658166,41842.0,41831.0,0.51351]
[1641770640347,0.059762,41838.0,41831.0,0.48851]
[1641770640547,0.26658166,41842.0,41831.0,0.48851]
[1641770640548,0.0477,41837.0,41831.0,0.48851]
[1641770640747,0.23001969,41842.0,41835.0,0.26865044]
[1641770640948,0.0577,41843.0,41835.0,0.26865044]
[1641770641148,0.01011693,41843.0,41839.0,0.26035533]
[1641770641347,0.00125472,41840.0,41835.0,0.26865044]
[1641770641549,0.01011693,41843.0,41835.0,0.26865044]
[1641770642047,0.00011693,41843.0,41832.0,0.00126849]
[1641770642248,0.26669859,41843.0,41831.0,0.48851]
[1641770642451,0.10756207,41843.0,41834.0,0.27783735]
[1641770642685,0.26658166,41842.0,41834.0,0.27783735]
[1641770643089,0.06081694,41843.0,41842.0,0.0001993]
[1641770643287,0.01311694,41843.0,41842.0,1.29296351]
[1641770643487,0.11321468,41843.0,41842.0,2.0469746]
[1641770643888,0.00120784,41857.0,41843.0,0.863]
[1641770644090,0.059722,41857.0,41854.0,0.33386079]
[1641770644594,0.059722,41857.0,41855.0,0.0477]
[1641770644595,0.012,41857.0,41855.0,0.0477]
[1641770644790,0.012,41857.0,41856.0,1.5245369]
[1641770644992,0.52828493,41880.0,41856.0,1.5245369]
[1641770644993,0.23714936,41867.0,41857.0,0.85]
[1641770645189,0.059698,41873.0,41862.0,0.06091095]
[1641770645389,0.23714936,41872.0,41865.0,0.26094798]
[1641770645790,0.01341,41878.0,41865.0,0.26094798]
[1641770645791,0.059695,41878.0,41865.0,0.26094798]
[1641770645990,0.9036,41880.0,41876.0,0.47477725]
[1641770645991,0.00120395,41880.0,41876.0,0.47477725]
[1641770646191,0.01341,41884.0,41876.0,0.47477725]
[1641770646456,0.119377,41884.0,41876.0,0.47477725]
[1641770646655,0.016,41880.0,41877.0,0.25400332]
[1641770646856,0.011,41880.0,41877.0,0.25400332]
[1641770647056,0.011,41880.0,41878.0,0.64141337]
[1641770647257,0.011,41880.0,41879.0,1.20488764]
[1641770647456,0.011,41880.0,41879.0,1.21087129]
[1641770647660,0.011,41880.0,41879.0,0.0477]
[1641770647856,0.01021459,41882.0,41879.0,0.0477]
[1641770648057,0.01021459,41882.0,41876.0,0.47477725]
[1641770648558,0.30479953,41882.0,41877.0,0.059683]
[1641770648755,0.02521459,41882.0,41877.0,0.059683]
[1641770649558,0.0002146,41881.0,41876.0,0.46341125]
[1641770649857,0.0002146,41881.0,41877.0,0.33440006]
[1641770650057,0.00021049,41881.0,41877.0,0.43440006]
[1641770650306,0.004,41889.0,41886.0,0.44260657]
[1641770650496,0.004,41889.0,41884.0,0.0477]
[1641770651198,0.25698391,41885.0,41878.0,0.00598365]
[1641770651397,0.46152241,41885.0,41877.0,0.011]
[1641770651601,0.25698391,41885.0,41879.0,0.05968]
[1641770651799,0.32868899,41888.0,41879.0,0.05968]
[1641770651999,0.004,41889.0,41879.0,0.05968]
[1641770652201,0.004,41889.0,41879.0,0.15968]
[1641770652399,0.004,41889.0,41881.0,0.00121577]
[1641770652598,0.031,41889.0,41888.0,0.3524508]
[1641770652996,0.031,41889.0,41888.0,0.32742181]
[1641770653196,0.031,41889.0,41884.0,0.11932]
[1641770653398,0.031,41889.0,41879.0,0.004]
[1641770653399,0.23641596,41888.0,41879.0,0.004]
[1641770653800,0.00127524,41884.0,41879.0,0.004]
[1641770654047,0.24378661,41882.0,41880.0,0.40961354]
[1641770654246,0.24378661,41882.0,41873.0,0.2555772]
[1641770654247,0.27018004,41882.0,41873.0,0.2555772]
[1641770654648,0.27118004,41882.0,41880.0,0.051]
[1641770655048,0.001,41882.0,41880.0,0.051]
[1641770655252,0.001,41882.0,41881.0,1.43069367]
[1641770655454,0.004,41889.0,41883.0,0.85]